{"text_format":"1","workbook":"xlsx","n_sheets":5,"sheets":["VERİ SETİ","GLM (Özet)","ANOVA","REGRESYON","Level"],"not_rendered":{"charts":0,"images":0,"macros":1,"external_links":0,"defined_names":3,"comments":0,"pivot_tables":0},"unopened":[],"bounds":{"document_bytes":16777216,"sheet_cells":100000,"rows_first":2000,"rows_last":500,"rows_between":2000,"halvings":0,"cell_chars":16384,"cell_head_chars":4096},"cells_cut":0,"cells_raw":0,"read":"whole","date_system":"1900"}

{"sheet":"VERİ SETİ","index":0,"n_rows":5,"n_cols":58,"rows_kept":5,"cut":false,"hidden":false,"merged":[[1,0,3,0],[2,14,2,16],[1,38,2,57],[2,4,2,13],[1,4,1,16],[1,17,2,36],[1,1,2,3]]}
[null,null,null,"*** Lütfen Sütun ekleme veya çıkartma yapmayınız.",null,null,null,null,null,null,null,null,null,null,null,null,null,null,null,null,null,null,null,null,null,null,null,null,null,null,null,null,null,null,null,null,null,null,"BU KISIMDA YER ALAN BİLGİLER PROGRAM TARAFINDAN HESAPLANACAKTIR"]
[null,"BİREY PEDİGRİ BİLGİLERİ",null,null,"İNCELENEN FAKTÖRLER (Lütfen Doldurunuz)",null,null,null,null,null,null,null,null,null,null,null,null,"İNCELENEN ÖZELLİKLER (Traits)",null,null,null,null,null,null,null,null,null,null,null,null,null,null,null,null,null,null,null,null,"ÖZELLİKLERİN ÇEVRE FAKTÖRLERİNE GÖRE STANDARDİZE EDİLMİŞ SONUÇLARI"]
[null,null,null,null,"Kesikli Çevre Faktörleri",null,null,null,null,null,null,null,null,null,"Sürekli Çevre Faktörleri"]
[null,"ID","SIRE","DAM","Faktör1","Faktör2","Faktör3","Faktör4","Faktör5","Faktör6","Faktör7","Faktör8","Faktör9","Faktör10","Faktör1","Faktör2","Faktör3","1. Verim","2. Verim","3. Verim","4. Verim","5. Verim","6. Verim","7. Verim","8. Verim","9. Verim","10. Verim","11. Verim","12. Verim","13. Verim","14. Verim","15. Verim","16. Verim","17. Verim","18. Verim","19. Verim","20. Verim",null,"1. Verim","2. Verim","3. Verim","4. Verim","5. Verim","6. Verim","7. Verim","8. Verim","9. Verim","10. Verim","11. Verim","12. Verim","13. Verim","14. Verim","15. Verim","16. Verim","17. Verim","18. Verim","19. Verim","20. Verim"]
["Sıra No","Animal Küpe No","Baba Küpe No","Ana Küpe No","Faktör Başlık","Faktör Başlık","Faktör Başlık","Faktör Başlık","Faktör Başlık","Faktör Başlık","Faktör Başlık","Faktör Başlık","Faktör Başlık","Faktör Başlık","Faktör Başlık","Faktör Başlık","Faktör Başlık","Verim Başlık","Verim Başlık","Verim Başlık","Verim Başlık","Verim Başlık","Verim Başlık","Verim Başlık","Verim Başlık","Verim Başlık","Verim Başlık","Verim Başlık","Verim Başlık","Verim Başlık","Verim Başlık","Verim Başlık","Verim Başlık","Verim Başlık","Verim Başlık","Verim Başlık","Verim Başlık",null,{"$f":"R5","v":"Verim Başlık"},"Verim Başlık","Verim Başlık","Verim Başlık","Verim Başlık","Verim Başlık","Verim Başlık","Verim Başlık","Verim Başlık","Verim Başlık","Verim Başlık","Verim Başlık","Verim Başlık","Verim Başlık",{"$f":"AF5","v":"Verim Başlık"},"Verim Başlık",{"$f":"AH5","v":"Verim Başlık"},"Verim Başlık",{"$f":"AJ5","v":"Verim Başlık"},"Verim Başlık"]

{"sheet":"GLM (Özet)","index":1,"n_rows":28,"n_cols":10,"rows_kept":28,"cut":false,"hidden":false,"merged":[[3,4,3,5],[3,2,3,3],[1,2,2,5]]}
[]
[null,null,"En Küçük Kareler Ortalaması Analiz Sonuçları"]
[]
[null,null,null,null,"X. Özellik İçin GLM Analizi",null,null,null,null,"X. Özellik İçin GLM Analizi"]
[null,null,null,null,"EKK Ortalaması","β1 Regresyon Denkleminden"]
[null,null,"1. Sürekli Faktör",null,null,null,null,null,"1. Sürekli Faktör İçin Ortalama = En Küçük Kareler Ortalaması β1 = Regresyon denklimindeki etki miktarını ifade eder"]
[null,null,"2. Sürekli Faktör",null,null,null,null,null,"2. Sürekli Faktör İçin Ortalama = En Küçük Kareler Ortalaması β1 = Regresyon denklimindeki etki miktarını ifade eder"]
[null,null,"3. Sürekli Faktör",null,null,null,null,null,"3. Sürekli Faktör İçin Ortalama = En Küçük Kareler Ortalaması β1 = Regresyon denklimindeki etki miktarını ifade eder"]
[]
[]
[null,null,"Faktörler ↓","N","EKK Ortalaması","Etki Miktarı"]
[null,null,"Genel Ortalama",null,156.75516139662099]
[null,null,0]
[null,null,"Faktör Başlık"]
[null,null,1,null,118.96331504219334,-37.791846354427648]
[null,null,2,null,194.54700775104862,37.791846354427648]
[null,null,"Faktör Başlık"]
[null,null,1,null,178.29605856985194,21.540897173230945]
[null,null,2,null,135.21426422339005,-21.540897173230945]
[null,null,"Faktör Başlık"]
[null,null,2015,null,167.25937361204575,10.504212215424758]
[null,null,2016,null,146.25094918119623,-10.504212215424758]
[null,null,0]
[null,null,0]
[null,null,0]
[null,null,0]
[null,null,0]
[null,null,0]

{"sheet":"ANOVA","index":2,"n_rows":30,"n_cols":7,"rows_kept":30,"cut":false,"hidden":false,"merged":[]}
[]
["Varyans Analiz Tablosu"]
[]
["Varyans Kaynağı","Serbestlik Derecesi","Kareler Toplamı","Kareler Ortalaması","F","P"]
["GENEL",180,899275.4143646406]
[]
["Faktör Başlık",1,9263.4031914565712,9263.4031914565712,1.863063813133274,0.17398479093094502]
["Faktör Başlık",1,75389.540863142349,75389.540863142349,16.37936545404057,7.7048801040214166E-5]
["Faktör Başlık",1,21996.118831994943,21996.118831994943,4.4880863950362979,3.5511599693035585E-2]
[]
[]
[]
[]
[]
[]
["HATA"]
[]
[]
["Faktörler","Seviye","N/m","∑x","∑(x)²","∑(x)²/m","∑(∑(x)²/m)"]
["Genel",null,181,35780,7972250,null,7072974.5856353594]
[]
[]
["Faktör Başlık",1,2,260,67600,33800,7082237.988826816]
[null,2,179,35520,1261670400,7048437.988826816]
[]
["Faktör Başlık",1,104,22385,501088225,4818156.009615385,7148364.1264985017]
[null,2,77,13395,179426025,2330208.1168831168]
[]
["Faktör Başlık",2015,97,20170,406828900,4194112.3711340204,7094970.7044673543]
[null,2016,84,15610,243672100,2900858.3333333335]

{"sheet":"REGRESYON","index":3,"n_rows":30,"n_cols":7,"rows_kept":30,"cut":false,"hidden":false,"merged":[[25,1,25,6],[11,1,11,6],[1,1,1,6],[15,1,15,6],[5,1,5,6],[21,1,21,6]]}
[]
[null,"1. Sürekli Faktör ve Özellik Arasındaki Regresyon Analizi"]
[null,null,"β0","β1"]
[null,"Y = ",null,null,"Regresyon denklemi"]
[]
[null,"Varyans Analiz Tablosu"]
[null,"Kaynak","Serbestlik Derecesi","Kareler Toplamı","Kareler Ortalaması","F","P"]
[null,"Regresyon"]
[null,"Hata"]
[null,"Genel"]
[]
[null,"2. Sürekli Faktör ve Özellik Arasındaki Regresyon Analizi"]
[null,null,"β0","β1"]
[null,"Y = ",null,null,"Regresyon denklemi"]
[]
[null,"Varyans Analiz Tablosu"]
[null,"Kaynak","Serbestlik Derecesi","Kareler Toplamı","Kareler Ortalaması","F","P"]
[null,"Regresyon"]
[null,"Hata"]
[null,"Genel"]
[]
[null,"3. Sürekli Faktör ve Özellik Arasındaki Regresyon Analizi"]
[null,null,"β0","β1"]
[null,"Y = ",null,null,"Regresyon denklemi"]
[]
[null,"Varyans Analiz Tablosu"]
[null,"Kaynak","Serbestlik Derecesi","Kareler Toplamı","Kareler Ortalaması","F","P"]
[null,"Regresyon"]
[null,"Hata"]
[null,"Genel"]

{"sheet":"Level","index":4,"n_rows":12,"n_cols":11,"rows_kept":12,"cut":false,"hidden":true,"merged":[]}
[null,0,2,2,2,0,0,0,0,0,0]
[null,0,1,1,1,0,0,0,0,0,0]
[null,null,"Faktör Başlık","Faktör Başlık","Faktör Başlık"]
[1,null,1,1,2015]
[2,null,2,2,2016]
[3]
[3]
[3]
[3]
[3]
[3]
[3]